bitfinex/quotes_BTCUSD_20250903
["timestamp","ask_amount","ask_price","bid_price","bid_amount"]
[1756912696144,0.81123467,112270.0,112260.0,0.00206]
[1756912696347,0.81425467,112270.0,112260.0,0.15342]
[1756912696562,0.6310227,112270.0,112260.0,0.3583605]
[1756912696777,0.81425467,112270.0,112260.0,0.3583605]
[1756912696977,0.81425467,112270.0,112260.0,0.18020266]
[1756912697224,0.81425467,112270.0,112260.0,0.17814266]
[1756912697655,0.81425467,112270.0,112260.0,0.02678266]
[1756912697829,0.81425467,112270.0,112260.0,0.17814266]
[1756912698305,0.81525467,112270.0,112260.0,0.17814266]
[1756912698527,0.90717066,112270.0,112260.0,0.02678266]
[1756912699556,0.74954011,112270.0,112260.0,0.2049405]
[1756912699724,0.90090011,112270.0,112260.0,0.2049405]
[1756912699974,0.90090011,112270.0,112260.0,0.02884266]
[1756912700160,0.74954011,112270.0,112260.0,0.02884266]
[1756912700373,0.90090011,112270.0,112260.0,0.2070005]
[1756912700571,0.89581011,112270.0,112260.0,0.2099505]
[1756912700787,0.89788011,112270.0,112260.0,0.2070005]
[1756912701033,0.90090011,112270.0,112260.0,0.02678266]
[1756912701461,0.89990011,112270.0,112260.0,0.02678266]
[1756912701758,0.90090011,112270.0,112260.0,0.02678266]
[1756912702256,0.89990011,112270.0,112260.0,0.02678266]
[1756912702478,0.17815784,112260.0,112250.0,0.020778]
[1756912702682,1.13074585,112260.0,112250.0,0.020778]
[1756912702853,1.22194813,112260.0,112250.0,0.04756265]
[1756912703629,0.27516383,112260.0,112250.0,0.04756265]
[1756912703871,1.22194813,112260.0,112250.0,0.04962265]
[1756912704270,0.74855598,112260.0,112250.0,0.04962265]
[1756912704571,0.74553598,112260.0,112250.0,0.04962265]
[1756912704973,0.65663999,112260.0,112250.0,0.22879636]
[1756912705277,0.65663999,112260.0,112250.0,0.04856265]
[1756912705520,0.65663999,112260.0,112250.0,0.22879636]
[1756912705710,0.47339215,112260.0,112250.0,0.23174636]
[1756912705925,0.65154999,112260.0,112250.0,0.23174636]
[1756912706351,0.17815784,112260.0,112250.0,0.23174636]
[1756912706574,0.65154999,112260.0,112250.0,0.23174636]
[1756912707291,0.17815784,112260.0,112250.0,0.23174636]
[1756912707511,0.65154999,112260.0,112250.0,0.23174636]
[1756912708617,0.65150899,112260.0,112250.0,0.23174636]
[1756912709881,0.17811684,112260.0,112250.0,0.23174636]
[1756912710133,0.6542927,112260.0,112250.0,0.23174636]
[1756912710337,0.65659899,112260.0,112250.0,0.22879636]
[1756912710752,0.17811684,112260.0,112250.0,0.23174636]
[1756912710987,0.6542927,112260.0,112250.0,0.23174636]
[1756912711189,0.65154999,112260.0,112250.0,0.23174636]
[1756912711403,0.47339215,112260.0,112250.0,0.23174636]
[1756912711616,0.65154999,112260.0,112250.0,0.23174636]
[1756912713040,0.65361999,112260.0,112250.0,0.22879636]
[1756912713598,0.65663999,112260.0,112250.0,0.04856265]
[1756912714264,0.65663999,112260.0,112250.0,0.22879636]
[1756912715112,0.65361999,112260.0,112250.0,0.22879636]
[1756912716028,0.65154999,112260.0,112250.0,0.23174636]
[1756912716993,0.18022784,112260.0,112250.0,0.22879636]
[1756912717183,0.80285797,112270.0,112260.0,0.17815784]
[1756912717385,0.80794797,112270.0,112260.0,0.00206]
[1756912717692,0.00509,112270.0,112260.0,0.18021784]
[1756912717898,0.65940758,112270.0,112260.0,0.33153784]
[1756912718125,0.65360412,112270.0,112260.0,0.33153784]
[1756912718276,0.65460412,112270.0,112260.0,0.35831893]
[1756912718473,0.65762412,112270.0,112260.0,0.35831893]
[1756912718673,0.65460412,112270.0,112260.0,0.35831893]
[1756912718879,0.80592412,112270.0,112260.0,0.35831893]
[1756912719151,0.80592412,112270.0,112260.0,0.20699893]
[1756912719603,0.80592412,112270.0,112260.0,0.02884109]
[1756912719782,0.65755412,112270.0,112260.0,0.02678109]
[1756912720019,0.65460412,112270.0,112260.0,0.20707893]
[1756912720469,0.65757412,112270.0,112260.0,0.02892109]
[1756912721122,0.65757412,112270.0,112260.0,0.20707893]
[1756912721326,0.001,112270.0,112260.0,0.20707893]
[1756912721540,0.001,112270.0,112260.0,0.68350108]
[1756912723375,0.001,112270.0,112260.0,0.21010893]
[1756912723581,0.001,112270.0,112260.0,1.24880922]
[1756912723784,0.001,112270.0,112260.0,1.26974804]
[1756912723957,0.001,112270.0,112260.0,1.33363576]
[1756912724177,0.001,112270.0,112260.0,2.14702791]
[1756912724463,0.001,112270.0,112260.0,1.60974804]
[1756912724670,0.25162484,112310.0,112300.0,0.17809439]
[1756912724879,0.25679029,112310.0,112300.0,0.32941439]
[1756912725093,0.07576176,112310.0,112300.0,0.33155439]
[1756912725292,0.54706391,112310.0,112300.0,0.33458439]
[1756912725532,0.72514244,112310.0,112300.0,0.36135578]
[1756912725733,0.65359613,112310.0,112300.0,0.36135578]
[1756912725939,0.65368613,112310.0,112300.0,0.35832578]
[1756912726153,0.65663613,112310.0,112300.0,0.35832578]
[1756912726366,0.66523271,112310.0,112300.0,0.35832578]
[1756912726575,0.66523271,112310.0,112300.0,0.17809139]
[1756912727473,0.66723271,112310.0,112300.0,0.02677139]
[1756912727789,0.66623271,112310.0,112300.0,0.02677139]
[1756912728916,0.19284056,112310.0,112300.0,0.02677139]
[1756912729135,0.66623271,112310.0,112300.0,0.02677139]
[1756912732779,1.23154085,112310.0,112300.0,0.02677139]
[1756912733028,1.25444085,112310.0,112300.0,0.02677139]
[1756912733256,1.25444085,112310.0,112290.0,0.15128]
[1756912733257,0.17809439,112300.0,112290.0,0.17805499]
[1756912733481,1.28398141,112300.0,112290.0,0.02677499]
[1756912733672,1.28119869,112300.0,112290.0,0.02677499]
[1756912734131,1.12991869,112300.0,112290.0,0.02677499]
[1756912734604,0.65652654,112300.0,112290.0,0.20802524]
[1756912734815,0.65357654,112300.0,112290.0,0.20802524]
[1756912735223,0.65357654,112300.0,112290.0,0.02777499]
[1756912735224,0.65652654,112300.0,112290.0,0.02777499]
[1756912735438,1.12991869,112300.0,112290.0,0.17905499]
[1756912736272,1.22183468,112300.0,112290.0,0.02777499]
[1756912736832,1.21888468,112300.0,112290.0,0.20802524]
[1756912737059,0.74844253,112300.0,112290.0,0.20802524]
[1756912737507,0.74549253,112300.0,112290.0,0.20802524]
[1756912737776,0.74844253,112300.0,112290.0,0.20802524]
[1756912737956,0.47548215,112300.0,112290.0,0.20802524]
[1756912738154,0.65357654,112300.0,112290.0,0.20802524]
[1756912738515,0.47548215,112300.0,112290.0,0.21105524]
[1756912738946,0.47339215,112300.0,112290.0,0.21105524]
[1756912739568,0.19865448,112310.0,112290.0,0.21105524]
[1756912739772,0.47339215,112300.0,112290.0,0.21105524]
[1756912739975,0.65148654,112300.0,112290.0,0.33552025]
[1756912740172,0.17809439,112300.0,112290.0,0.36229293]
[1756912740375,0.65148654,112300.0,112290.0,0.36129293]
[1756912740815,0.65357654,112300.0,112290.0,0.35826293]
[1756912741017,1.12696869,112300.0,112290.0,0.35826293]
[1756912741638,1.12991869,112300.0,112290.0,0.35612293]
[1756912742054,1.12991869,112300.0,112290.0,0.35712293]
[1756912742452,1.12696869,112300.0,112290.0,0.35926293]
[1756912742936,0.9488743,112300.0,112290.0,0.35926293]
[1756912743151,0.47339215,112300.0,112290.0,0.36229293]
[1756912743388,0.19865448,112310.0,112300.0,0.17809439]
[1756912743389,0.18680056,112310.0,112300.0,0.17809439]
[1756912743596,0.66523271,112310.0,112290.0,0.36015293]
[1756912743800,0.47339215,112300.0,112290.0,0.33035025]
[1756912744024,0.48506418,112310.0,112300.0,0.17809439]
[1756912744229,0.65159613,112310.0,112300.0,0.18326439]
[1756912744428,0.00012545,112310.0,112300.0,0.65665654]
[1756912744636,0.00112545,112310.0,112300.0,0.65665654]
[1756912744835,0.00112545,112310.0,112300.0,0.6834269]
[1756912745042,0.00112545,112310.0,112300.0,0.21003475]
[1756912745471,0.00112545,112310.0,112300.0,0.6834269]
[1756912745679,0.00112545,112310.0,112300.0,0.77534289]
[1756912746350,0.00112545,112310.0,112300.0,0.81456344]
[1756912746956,0.4745176,112310.0,112300.0,0.2492553]
[1756912747179,0.65763613,112310.0,112300.0,0.3953253]
[1756912747852,0.18424398,112310.0,112300.0,0.3953253]
[1756912748036,0.65763613,112310.0,112300.0,0.3953253]
[1756912748523,0.65763613,112310.0,112300.0,0.2440853]
[1756912748748,1.22294427,112310.0,112300.0,0.02677036]
[1756912748965,0.17809439,112300.0,112290.0,0.17811025]
[1756912749187,0.65672654,112300.0,112290.0,0.35608455]
[1756912750259,0.65354654,112300.0,112290.0,0.35813455]
[1756912751098,0.65354654,112300.0,112290.0,0.35913455]
[1756912751266,0.65354654,112300.0,112290.0,0.0277743]
[1756912751267,0.64672654,112300.0,112290.0,0.0277743]
[1756912751470,1.12217869,112300.0,112290.0,0.1789743]
[1756912751734,1.12217869,112300.0,112290.0,0.35708455]
[1756912751864,1.11899869,112300.0,112290.0,0.35708455]
[1756912752468,1.11999869,112300.0,112290.0,0.20588455]
[1756912752710,1.11999869,112300.0,112290.0,0.35708455]
[1756912752925,1.12217869,112300.0,112290.0,0.0277743]
[1756912753131,1.12217869,112300.0,112290.0,0.1779743]
[1756912753327,0.18015439,112300.0,112290.0,0.33136025]
[1756912753554,0.65354654,112300.0,112290.0,0.33136025]
[1756912753756,0.65454654,112300.0,112290.0,0.33136025]
[1756912754011,0.65248654,112300.0,112290.0,0.33456025]
[1756912754657,0.65454654,112300.0,112290.0,0.33136025]
[1756912755224,0.65454654,112300.0,112290.0,0.33456025]
[1756912755424,0.65248654,112300.0,112290.0,0.33456025]
[1756912755628,0.47439215,112300.0,112290.0,0.33456025]
[1756912755855,0.65248654,112300.0,112290.0,0.33456025]
[1756912756330,0.65454654,112300.0,112290.0,0.33136025]
[1756912756536,0.65248654,112300.0,112290.0,0.33456025]
[1756912756739,0.17909439,112300.0,112290.0,0.33456025]
[1756912756932,0.65248654,112300.0,112290.0,0.33456025]
[1756912757877,0.65454654,112300.0,112290.0,0.33456025]
[1756912758180,0.65454654,112300.0,112290.0,0.33136025]
[1756912758766,0.65454654,112300.0,112290.0,0.33456025]
[1756912759164,0.001,112300.0,112290.0,0.33456025]
[1756912759533,0.001,112300.0,112290.0,0.96524228]
[1756912759753,0.001,112300.0,112290.0,1.10484532]
[1756912759969,0.001,112300.0,112290.0,1.13161539]
[1756912761213,0.001,112300.0,112290.0,1.53161539]
[1756912762129,0.001,112300.0,112290.0,0.74973336]
[1756912762340,0.001,112300.0,112290.0,0.90093336]
[1756912763523,0.001,112300.0,112290.0,0.74973336]
[1756912763736,0.001,112300.0,112290.0,0.90093336]
[1756912764359,0.001,112300.0,112290.0,0.74973336]
[1756912764568,0.001,112300.0,112290.0,0.69679631]
[1756912764781,0.00306,112300.0,112290.0,0.75604032]
[1756912764990,0.001,112300.0,112290.0,0.36129032]
[1756912765195,0.00306,112300.0,112290.0,0.36129032]
[1756912765442,0.00306,112300.0,112290.0,0.20488032]
[1756912765615,0.00306,112300.0,112290.0,0.35809032]
[1756912765752,0.00306,112300.0,112290.0,0.36129032]
[1756912766212,0.001,112300.0,112290.0,0.36129032]
[1756912769526,0.001,112300.0,112290.0,0.40897737]
[1756912771637,0.00306,112300.0,112290.0,0.40577737]
[1756912771852,0.00306,112300.0,112290.0,0.40372737]
[1756912772068,0.00306,112300.0,112290.0,0.35604032]
[1756912772281,0.00306,112300.0,112290.0,0.40372737]
[1756912772456,0.00306,112300.0,112290.0,0.40577737]
[1756912772663,0.00306,112300.0,112290.0,0.40897737]
[1756912773662,0.001,112300.0,112290.0,0.40897737]
[1756912776284,0.001,112300.0,112290.0,1.0396594]
[1756912776717,0.001,112300.0,112290.0,0.40897737]
[1756912776899,0.001,112300.0,112290.0,1.0396594]
[1756912778949,0.001,112300.0,112290.0,1.13157539]
[1756912779132,0.001,112300.0,112290.0,1.08388834]
[1756912779284,0.001,112300.0,112290.0,1.10482716]
[1756912779500,0.001,112300.0,112290.0,1.16858541]
[1756912780055,0.001,112300.0,112290.0,1.56858541]
[1756912780835,0.001,112300.0,112290.0,0.93790338]
[1756912781318,0.00012545,112310.0,112300.0,0.17809439]
[1756912781496,0.00012545,112310.0,112300.0,0.90069241]
[1756912781672,0.00012545,112310.0,112300.0,0.90588241]
[1756912781987,0.00012545,112310.0,112300.0,0.30196725]
[1756912782150,0.00012545,112310.0,112300.0,0.93264928]
[1756912782851,0.00222545,112310.0,112300.0,0.29677725]
[1756912783076,0.18451398,112310.0,112300.0,0.20486126]
[1756912783278,0.18451398,112310.0,112300.0,0.35598126]
[1756912783483,0.18451398,112310.0,112300.0,0.20486126]
[1756912783688,0.18451398,112310.0,112300.0,0.35598126]
[1756912783884,0.00643545,112310.0,112300.0,0.35598126]
[1756912784113,0.00322545,112310.0,112300.0,0.35598126]
[1756912784526,0.00322545,112310.0,112300.0,0.35794126]
[1756912784716,0.00322545,112310.0,112300.0,0.36117126]
[1756912785537,0.00112545,112310.0,112300.0,0.36117126]
[1756912787270,0.00322545,112310.0,112300.0,0.36117126]
[1756912787475,0.00112545,112310.0,112300.0,0.36117126]
[1756912789166,0.00112545,112310.0,112300.0,0.37006342]
[1756912789345,0.00112545,112310.0,112300.0,0.36117126]
[1756912790090,0.00112545,112310.0,112300.0,0.36107126]
[1756912790617,0.00112545,112310.0,112300.0,1.00062075]
[1756912790853,0.00112545,112310.0,112300.0,1.09253674]
[1756912792331,0.00112545,112310.0,112300.0,0.46185471]
[1756912792549,0.00112545,112310.0,112300.0,1.09253674]
[1756912793129,0.00112545,112310.0,112300.0,1.11347556]
[1756912793593,0.00012545,112310.0,112300.0,1.11347556]
[1756912793977,0.00112545,112310.0,112300.0,1.11447556]
[1756912794369,0.00012545,112310.0,112300.0,1.11447556]
[1756912795770,0.00012545,112310.0,112300.0,1.51447556]
[1756912795981,0.00012545,112310.0,112300.0,1.36335556]
[1756912796232,0.00012545,112310.0,112300.0,1.51443556]
[1756912799169,0.00012545,112310.0,112300.0,0.73267353]
[1756912799414,0.00012545,112310.0,112300.0,1.51439556]
[1756912799726,0.00012545,112310.0,112300.0,1.3544881]
[1756912799881,0.00222545,112310.0,112300.0,0.69767725]
[1756912800100,0.00543545,112310.0,112300.0,0.84871725]
[1756912800445,0.18351398,112310.0,112300.0,0.20576126]
[1756912800653,0.00543545,112310.0,112300.0,0.35680126]
[1756912801073,0.18351398,112310.0,112300.0,0.35680126]
[1756912801471,0.00543545,112310.0,112300.0,0.35680126]
[1756912802471,0.00222545,112310.0,112300.0,0.35876126]
[1756912802673,0.00012545,112310.0,112300.0,0.99267329]
[1756912804083,0.00012545,112310.0,112300.0,1.08458928]
[1756912804297,0.00012545,112310.0,112300.0,1.04034798]
[1756912805039,0.00012545,112310.0,112300.0,0.40966595]
[1756912805244,0.00012545,112310.0,112300.0,1.04034798]
[1756912806905,0.00222545,112310.0,112300.0,1.04034798]
[1756912807110,0.00222545,112310.0,112300.0,0.25539595]
[1756912807309,0.00222545,112310.0,112300.0,0.40643595]
[1756912809257,0.00222545,112310.0,112300.0,0.31251996]
[1756912809394,0.00537545,112310.0,112300.0,0.31251996]
[1756912810981,0.00537545,112310.0,112300.0,0.16151996]
[1756912811190,0.18345398,112310.0,112300.0,0.31251996]
[1756912811402,0.00537545,112310.0,112300.0,0.31251996]
[1756912811886,0.18345398,112310.0,112300.0,0.31251996]
[1756912812096,0.00537545,112310.0,112300.0,0.31251996]
[1756912812323,0.18345398,112310.0,112300.0,0.31251996]
[1756912813239,0.00222545,112310.0,112300.0,0.31457996]
[1756912813902,0.00222545,112310.0,112300.0,0.31773996]
[1756912814127,0.00012545,112310.0,112300.0,0.94842199]
[1756912814341,0.00012545,112310.0,112300.0,0.31773996]
[1756912814893,0.00226545,112310.0,112300.0,0.31773996]
[1756912815090,0.00226545,112310.0,112300.0,0.16673996]
[1756912815295,0.00226545,112310.0,112300.0,0.31773996]
[1756912816355,0.00226545,112310.0,112300.0,0.38621996]
[1756912818184,0.00012545,112310.0,112300.0,0.38621996]
[1756912818733,0.00012545,112310.0,112300.0,1.01690199]
[1756912819704,0.00012545,112310.0,112300.0,1.1297568]
[1756912820116,0.00012545,112310.0,112300.0,1.19351505]
[1756912821591,0.00012545,112310.0,112300.0,1.90816736]
[1756912821830,0.00012545,112310.0,112300.0,2.99003453]
[1756912822048,0.00012545,112310.0,112300.0,3.00613593]
[1756912822489,0.00012545,112310.0,112300.0,2.92627628]
[1756912823748,0.00012545,112310.0,112300.0,2.97627628]
[1756912823892,0.00012545,112310.0,112300.0,2.97727628]
[1756912824125,0.00012545,112310.0,112300.0,2.97627628]
[1756912824540,0.00012545,112310.0,112300.0,2.97827628]
[1756912825316,0.00012545,112310.0,112300.0,2.82727628]
[1756912825525,0.00012545,112310.0,112300.0,2.70903628]
[1756912825929,0.00012545,112310.0,112300.0,2.55807628]
[1756912826131,0.00012545,112310.0,112300.0,2.70903628]
[1756912826342,0.00012545,112310.0,112300.0,2.77270221]
[1756912827935,0.00012545,112310.0,112300.0,2.62174221]
[1756912828158,0.00012545,112310.0,112300.0,2.77266221]
[1756912830542,0.00012545,112310.0,112300.0,2.62174221]
[1756912830759,0.00012545,112310.0,112300.0,2.70899628]
[1756912834920,0.00012545,112310.0,112300.0,2.70895628]
[1756912835385,0.00012545,112310.0,112300.0,2.23628911]
[1756912835641,0.00012545,112310.0,112300.0,2.08540911]
[1756912835858,0.00012545,112310.0,112300.0,2.23628911]
[1756912836002,0.00012545,112310.0,112300.0,2.50548911]
[1756912836218,0.00012545,112310.0,112300.0,2.35460911]
[1756912836426,0.00012545,112310.0,112300.0,2.43446876]
[1756912836663,0.00012545,112310.0,112300.0,2.35460911]
[1756912836835,0.00012545,112310.0,112300.0,2.50548911]
[1756912837316,0.00012545,112310.0,112300.0,2.71944911]
[1756912837890,0.00012545,112310.0,112300.0,1.77411477]
[1756912838087,0.00012545,112310.0,112300.0,2.29936911]
[1756912838287,1e-08,112310.0,112300.0,2.97291628]
[1756912838486,0.00315,112350.0,112340.0,0.17803097]
[1756912838686,0.00315,112350.0,112340.0,0.91782957]
[1756912838956,0.00315,112350.0,112340.0,1.48773273]
[1756912838957,0.00209,112350.0,112340.0,1.48773273]
[1756912839169,0.07655631,112360.0,112350.0,0.17801513]
[1756912839368,0.07864631,112360.0,112350.0,0.89347829]
[1756912839587,0.00209,112360.0,112350.0,0.90224644]
[1756912839802,0.00301,112370.0,112360.0,0.17799928]
[1756912840013,0.47347261,112380.0,112370.0,0.17798344]
[1756912840224,0.47556261,112380.0,112370.0,0.32886344]
[1756912840439,0.50035261,112380.0,112370.0,0.32886344]
[1756912840654,1.15399738,112380.0,112360.0,0.26991527]
[1756912840862,0.67832021,112380.0,112370.0,0.17763305]
[1756912841042,0.67832021,112380.0,112370.0,0.02675305]
[1756912841251,0.67832021,112380.0,112370.0,0.17763305]
[1756912841730,0.68333021,112380.0,112370.0,0.17763305]
[1756912841951,0.68533021,112380.0,112370.0,0.17763305]
[1756912842098,1.15799738,112380.0,112370.0,0.21790781]
[1756912842328,1.15799738,112380.0,112370.0,0.39589125]
[1756912842526,1.15599738,112380.0,112370.0,0.06702781]
[1756912842740,1.16697696,112380.0,112370.0,0.17759305]
[1756912843144,1.76114747,112380.0,112370.0,0.02675305]
[1756912843366,2.10114747,112380.0,112370.0,0.02675305]
[1756912843548,0.68314596,112380.0,112370.0,0.17759305]
[1756912843748,2.10114747,112380.0,112370.0,0.02675305]
[1756912843954,2.19306346,112380.0,112370.0,0.02675305]
[1756912844976,0.17801238,112360.0,112340.0,0.25551266]
[1756912845187,0.67546955,112360.0,112350.0,0.15084]
[1756912845395,0.20489238,112360.0,112350.0,0.32885513]
[1756912845616,0.20489238,112360.0,112350.0,0.35561312]
[1756912845815,0.20790238,112360.0,112350.0,0.35561312]
[1756912846021,0.20790238,112360.0,112350.0,0.21706979]
[1756912846224,1.15323672,112360.0,112350.0,0.21706979]
[1756912846432,1.15323672,112360.0,112350.0,0.06622979]
[1756912846647,1.62590389,112360.0,112350.0,0.02675799]
[1756912846850,1.15323672,112360.0,112350.0,0.17859799]
[1756912847123,0.20790238,112360.0,112350.0,0.17859799]
[1756912847330,1.15323672,112360.0,112350.0,0.17859799]
[1756912847786,1.15323672,112360.0,112350.0,0.15084]
[1756912847986,0.17801513,112350.0,112340.0,0.09534158]
[1756912848199,0.18311513,112350.0,112340.0,0.24618158]
[1756912848413,0.6557823,112350.0,112340.0,0.24618158]
[1756912850023,0.6557823,112350.0,112340.0,0.24718158]
[1756912850634,1.12844947,112350.0,112340.0,0.24718158]
[1756912850881,0.6557823,112350.0,112340.0,0.24718158]
[1756912852569,0.18010513,112350.0,112340.0,0.42521255]
[1756912852780,0.6557823,112350.0,112340.0,0.24718158]
[1756912853405,0.6557823,112350.0,112340.0,0.42521255]
[1756912854332,0.18311513,112350.0,112340.0,0.42521255]
[1756912854535,0.6557823,112350.0,112340.0,0.42521255]
[1756912854745,0.6557823,112350.0,112340.0,0.42517255]
[1756912856235,0.6557823,112350.0,112340.0,0.24714158]
[1756912856437,0.18311513,112350.0,112340.0,0.42517255]
[1756912856644,0.6557823,112350.0,112340.0,0.27437255]
[1756912856902,0.6557823,112350.0,112340.0,0.24714158]
[1756912857115,0.6557823,112350.0,112340.0,0.42517255]
[1756912857331,2.29771524,112350.0,112340.0,0.00114015]
[1756912857545,2.19316555,112350.0,112340.0,0.00114015]
[1756912857757,2.3707324,112350.0,112340.0,0.00114015]
[1756912858352,2.3707324,112350.0,112340.0,0.00014015]
[1756912858569,2.3737324,112350.0,112340.0,0.00014015]
[1756912859457,2.2229254,112350.0,112340.0,0.00014015]
[1756912859666,2.3767254,112350.0,112340.0,0.00014015]
[1756912860077,3.82016128,112350.0,112340.0,0.00014015]
[1756912860285,2.40215977,112350.0,112340.0,0.00014015]
[1756912861727,2.25135356,112350.0,112340.0,0.00014015]
[1756912861932,2.40215356,112350.0,112340.0,0.00014015]
[1756912862968,2.25135356,112350.0,112340.0,0.00014015]
[1756912863168,2.40215356,112350.0,112340.0,0.00014015]
[1756912863978,2.40215356,112350.0,112300.0,0.17031943]
[1756912863979,0.6507457,112310.0,112300.0,0.17031943]
[1756912864202,0.6507457,112310.0,112300.0,0.1725498]
[1756912864633,0.17807853,112310.0,112300.0,0.1725498]
[1756912864868,0.6507457,112310.0,112300.0,0.1725498]
[1756912865658,1.12341287,112310.0,112300.0,0.1725498]
[1756912865858,1.12550287,112310.0,112300.0,0.07390037]
[1756912866106,1.12550287,112310.0,112300.0,0.00014037]
[1756912866470,1.12550287,112310.0,112300.0,0.00214037]
[1756912867317,1.12851287,112310.0,112300.0,0.00214037]
[1756912868304,1.22042886,112310.0,112300.0,0.00214037]
[1756912868503,1.65234485,112310.0,112300.0,0.00214037]
[1756912869140,1.66127019,112310.0,112300.0,0.00214037]
[1756912869344,1.68804394,112310.0,112300.0,0.00214037]
[1756912869865,1.68804394,112310.0,112300.0,0.00014037]
[1756912870521,1.68804394,112310.0,112300.0,0.00114037]
[1756912870837,1.83884394,112310.0,112300.0,0.00114037]
[1756912872238,1.83874394,112310.0,112300.0,0.00114037]
[1756912873396,1.81197019,112310.0,112300.0,0.00114037]
[1756912874573,1.82027383,112310.0,112300.0,0.00114037]
[1756912875181,1.66947383,112310.0,112300.0,0.00114037]
[1756912875467,1.82031383,112310.0,112300.0,0.00114037]
[1756912876236,2.292981,112310.0,112300.0,0.00114037]
[1756912876650,2.30959467,112310.0,112300.0,0.00114037]
[1756912877249,2.30955467,112310.0,112300.0,0.00014037]
[1756912877491,2.16175467,112310.0,112300.0,0.00014037]
[1756912877703,2.31555467,112310.0,112300.0,0.00014037]
[1756912878391,2.16475467,112310.0,112300.0,0.00014037]
[1756912878576,2.31559467,112310.0,112300.0,0.00014037]
[1756912880460,2.32182574,112310.0,112300.0,0.00014037]
[1756912882005,1.69831857,112310.0,112300.0,0.00014037]
[1756912882217,2.31559467,112310.0,112300.0,0.00014037]
[1756912882421,2.32182831,112310.0,112300.0,0.00014037]
[1756912882600,1.83254747,112310.0,112300.0,0.00014037]
[1756912882750,1.84917061,112310.0,112300.0,0.00014037]
[1756912883322,1.69833061,112310.0,112300.0,0.00014037]
[1756912883519,1.53484302,112310.0,112300.0,0.00014037]
[1756912884799,1.38400302,112310.0,112300.0,0.00014037]
[1756912884984,1.53484302,112310.0,112300.0,0.00014037]
[1756912885484,1.38400302,112310.0,112300.0,0.00014037]
[1756912885732,0.90383627,112310.0,112300.0,0.00014037]
[1756912885903,1.53484302,112310.0,112300.0,0.00014037]
[1756912887179,1.38400302,112310.0,112300.0,0.00014037]
[1756912887362,1.55404158,112310.0,112300.0,0.00014037]
[1756912887562,1.53480302,112310.0,112300.0,0.00014037]
[1756912887772,1.5540017,112310.0,112300.0,0.00014037]
[1756912888226,1.55400161,112310.0,112300.0,0.00014037]
[1756912889448,1.40019161,112310.0,112300.0,0.00014037]
[1756912889661,1.55406161,112310.0,112300.0,0.00014037]
[1756912889867,1.39810161,112310.0,112300.0,0.00534037]
[1756912890077,1.45903562,112310.0,112300.0,0.00534037]
[1756912890276,1.45903562,112310.0,112300.0,0.00220037]
[1756912890689,1.45903562,112310.0,112300.0,0.00014037]
[1756912890905,1.46210562,112310.0,112300.0,0.00014037]
[1756912892374,1.30618562,112310.0,112300.0,0.00534037]
[1756912892560,0.65598028,112310.0,112300.0,0.00534037]
[1756912892737,1.43778703,112310.0,112300.0,0.00534037]
[1756912893353,0.80678028,112310.0,112300.0,0.00534037]
[1756912893697,1.34587104,112310.0,112300.0,0.00534037]
[1756912894500,1.00587104,112310.0,112300.0,0.00534037]
[1756912895370,0.98301426,112310.0,112300.0,0.00534037]
[1756912895883,0.98927369,112310.0,112300.0,0.00534037]
[1756912896088,0.83847369,112310.0,112300.0,0.00534037]
[1756912896303,0.98927369,112310.0,112300.0,0.00534037]
[1756912896509,0.97471062,112310.0,112300.0,0.00534037]
[1756912896711,0.98931586,112310.0,112300.0,0.00534037]
[1756912896926,0.98331586,112310.0,112300.0,0.00534037]
[1756912897133,0.98005647,112310.0,112300.0,0.00534037]
[1756912897344,0.98305647,112310.0,112300.0,0.00534037]
[1756912897489,0.98005647,112310.0,112300.0,0.00534037]
[1756912897947,0.98105647,112310.0,112300.0,0.00534037]
[1756912898372,0.80007794,112310.0,112300.0,0.00534037]
[1756912898686,0.80107794,112310.0,112300.0,0.00534037]
[1756912900811,0.6413526,112310.0,112300.0,0.00534037]
[1756912901025,0.65002416,112310.0,112300.0,0.00534037]
[1756912901217,0.80078416,112310.0,112300.0,0.00534037]
[1756912902779,0.97886269,112310.0,112300.0,0.00534037]
[1756912904406,0.98097269,112310.0,112300.0,0.00534037]
[1756912905004,1.07605868,112310.0,112300.0,0.00014037]
[1756912905224,1.50797467,112310.0,112300.0,0.00014037]
[1756912906109,1.41605868,112310.0,112300.0,0.00014037]
[1756912906317,1.41288868,112310.0,112300.0,0.00218037]
[1756912906931,1.41288868,112310.0,112300.0,0.00014037]
[1756912908133,1.41288868,112310.0,112300.0,0.00218037]
[1756912908673,1.41288868,112310.0,112300.0,0.00014037]
[1756912910150,1.41605868,112310.0,112300.0,0.00014037]
[1756912910856,0.78505193,112310.0,112300.0,0.00014037]
[1756912911066,1.41605868,112310.0,112300.0,0.00014037]
[1756912911217,1.41288868,112310.0,112300.0,0.00014037]
[1756912911425,1.40454283,112310.0,112300.0,0.00014037]
[1756912912068,1.40771283,112310.0,112300.0,0.00014037]
[1756912913118,1.49027433,112310.0,112300.0,0.00014037]
[1756912913554,1.51527433,112310.0,112300.0,0.00014037]
[1756912913763,1.52361767,112310.0,112300.0,0.00014037]
[1756912915145,0.74185092,112310.0,112300.0,0.00014037]
[1756912915355,1.51527433,112310.0,112300.0,0.00014037]
[1756912915553,1.51523433,112310.0,112300.0,0.00014037]
[1756912917027,1.36451433,112310.0,112300.0,0.00014037]
[1756912917206,1.48706433,112310.0,112300.0,0.00014037]
[1756912917475,1.49023433,112310.0,112300.0,0.00014037]
[1756912918353,1.33951433,112310.0,112300.0,0.00014037]
[1756912918557,0.77138608,112310.0,112300.0,0.00537037]
[1756912918793,1.40450283,112310.0,112300.0,0.00537037]
[1756912918985,1.40450283,112310.0,112300.0,0.00218037]
[1756912919218,1.40767283,112310.0,112300.0,0.00014037]
[1756912919425,0.77666608,112310.0,112300.0,0.00014037]
[1756912919615,1.40767283,112310.0,112300.0,0.00014037]
[1756912921429,0.62277608,112310.0,112300.0,0.00218037]
[1756912921643,0.52875009,112310.0,112300.0,0.18346476]
[1756912921850,0.67947009,112310.0,112300.0,0.00537037]
[1756912922062,0.18007853,112310.0,112300.0,0.18346476]
[1756912922264,0.18007853,112310.0,112300.0,0.81447151]
[1756912922265,0.002,112310.0,112300.0,0.81447151]
[1756912922481,0.002,112310.0,112300.0,0.18346476]
[1756912923121,0.002,112310.0,112300.0,0.81447151]
[1756912924158,0.002,112310.0,112300.0,0.18346476]
[1756912924364,0.002,112310.0,112300.0,0.81447151]
[1756912925469,0.002,112310.0,112300.0,0.96519151]
[1756912925683,0.002,112310.0,112300.0,0.33418476]
[1756912925895,0.002,112310.0,112300.0,0.96519151]
[1756912926722,0.33780819,112320.0,112310.0,0.17807853]
[1756912926963,0.18708819,112320.0,112310.0,0.18330853]
[1756912927761,0.18808819,112320.0,112310.0,0.00523]
[1756912928099,0.18908819,112320.0,112310.0,0.00523]
[1756912928225,0.18908819,112320.0,112310.0,0.18330853]
[1756912929983,0.18006267,112320.0,112310.0,0.18330853]
[1756912930969,0.002,112320.0,112310.0,0.81431528]